bitfinex/quotes_BTCUSD_20230403
["timestamp","ask_amount","ask_price","bid_price","bid_amount"]
[1680501044435,8.25817261,27706.0,27705.0,0.82470941]
[1680501044657,8.25817261,27706.0,27705.0,0.81580941]
[1680501045243,8.29584242,27706.0,27705.0,0.81580941]
[1680501045447,8.29584242,27706.0,27705.0,0.30703174]
[1680501047333,8.47619242,27706.0,27705.0,0.30703174]
[1680501047796,8.84424629,27706.0,27705.0,0.24273174]
[1680501048254,8.75006331,27706.0,27705.0,0.24273174]
[1680501048479,8.80307557,27706.0,27705.0,0.24273174]
[1680501048720,8.80307557,27706.0,27705.0,0.23773174]
[1680501050065,8.4350217,27706.0,27705.0,0.23773174]
[1680501050729,8.4350217,27706.0,27705.0,0.22755643]
[1680501051187,8.3570217,27706.0,27705.0,0.22755643]
[1680501052464,7.3570217,27706.0,27705.0,0.22755643]
[1680501052664,8.3570217,27706.0,27705.0,0.22755643]
[1680501052913,8.15708838,27706.0,27705.0,0.22755643]
[1680501053702,8.15708838,27706.0,27705.0,0.14222743]
[1680501053900,8.15687838,27706.0,27705.0,0.14222743]
[1680501054706,8.25106233,27706.0,27705.0,0.14222743]
[1680501056191,8.2691162,27706.0,27705.0,0.14222743]
[1680501056860,8.17286233,27706.0,27705.0,0.14222743]
[1680501059945,6.97286233,27706.0,27705.0,0.14474743]
[1680501060290,8.17286233,27706.0,27705.0,0.14474743]
[1680501062003,8.37039778,27706.0,27705.0,0.14474743]
[1680501063769,8.07867838,27706.0,27705.0,0.13513862]
[1680501063982,7.89832838,27706.0,27705.0,0.13513862]
[1680501064200,8.07867838,27706.0,27705.0,0.13513862]
[1680501065937,7.90539838,27706.0,27705.0,0.13513862]
[1680501066392,8.07867838,27706.0,27705.0,0.13513862]
[1680501067281,7.89832838,27706.0,27705.0,0.13513862]
[1680501067512,7.90625838,27706.0,27705.0,0.13513862]
[1680501069653,7.98445838,27706.0,27705.0,0.13513862]
[1680501069907,8.14687838,27706.0,27705.0,0.07743862]
[1680501070137,8.16493225,27706.0,27705.0,0.07743862]
[1680501070356,8.16493225,27706.0,27705.0,0.05779329]
[1680501070564,0.09398657,27704.0,27702.0,0.02217217]
[1680501070784,2.04451968,27703.0,27702.0,0.02199217]
[1680501071014,3.9961409,27703.0,27702.0,0.02199217]
[1680501071228,4.59298093,27703.0,27702.0,0.02199217]
[1680501071456,6.83354521,27703.0,27702.0,0.02199217]
[1680501071876,6.86054521,27703.0,27702.0,0.02199217]
[1680501072082,6.86904521,27703.0,27702.0,0.02199217]
[1680501072559,6.90671502,27703.0,27702.0,0.02199217]
[1680501073648,6.79821502,27703.0,27702.0,0.02199217]
[1680501073867,6.50659831,27703.0,27702.0,0.02199217]
[1680501074105,4.55765074,27703.0,27702.0,0.02199217]
[1680501074325,4.84926745,27703.0,27702.0,0.02199217]
[1680501074981,6.79821502,27703.0,27702.0,0.02199217]
[1680501075462,0.41360433,27701.0,27700.0,0.20018]
[1680501075706,2.47533938,27701.0,27700.0,0.20018]
[1680501075935,3.49822726,27701.0,27700.0,0.20018]
[1680501076175,4.90138723,27701.0,27700.0,0.20018]
[1680501076397,5.49822726,27701.0,27700.0,0.20018]
[1680501077255,5.52522726,27701.0,27700.0,0.20018]
[1680501080084,5.78984397,27701.0,27700.0,0.20018]
[1680501080518,5.81684397,27701.0,27700.0,0.20018]
[1680501081859,5.60400497,27701.0,27700.0,0.27838]
[1680501082086,5.31259826,27701.0,27700.0,0.2732]
[1680501082547,5.01238826,27701.0,27700.0,0.27338]
[1680501082776,4.75981489,27701.0,27700.0,0.27338]
[1680501083055,4.78681489,27701.0,27700.0,0.27338]
[1680501083280,4.75981489,27701.0,27700.0,0.27338]
[1680501083501,4.78681489,27701.0,27700.0,0.30366209]
[1680501083947,5.08681489,27701.0,27700.0,0.30366209]
[1680501091368,5.09561282,27701.0,27700.0,0.30366209]
[1680501093364,4.75839899,27701.0,27700.0,0.30366209]
[1680501093583,4.38859899,27701.0,27700.0,0.30366209]
[1680501093806,4.38859899,27701.0,27700.0,0.3661383]
[1680501094454,4.38859899,27701.0,27700.0,0.30366209]
[1680501094891,4.76839899,27701.0,27700.0,0.30366209]
[1680501095101,2.76839899,27701.0,27700.0,0.30366209]
[1680501095317,4.38859899,27701.0,27700.0,0.30366209]
[1680501095776,4.76839899,27701.0,27700.0,0.30366209]
[1680501096628,4.38859899,27701.0,27700.0,0.30366209]
[1680501097311,4.76839899,27701.0,27700.0,0.30366209]
[1680501097984,4.94874899,27701.0,27700.0,0.30366209]
[1680501099547,4.94886899,27701.0,27700.0,0.30360209]
[1680501099785,4.94895899,27701.0,27700.0,0.30360209]
[1680501101360,4.94874899,27701.0,27700.0,0.30366209]
[1680501105254,5.28599591,27701.0,27700.0,0.30366209]
[1680501105710,5.54556212,27701.0,27700.0,0.30366209]
[1680501105904,5.54556373,27701.0,27700.0,0.30366209]
[1680501106031,5.28599591,27701.0,27700.0,0.30366209]
[1680501106260,5.28620591,27701.0,27700.0,0.30337664]
[1680501107540,5.54576915,27701.0,27700.0,0.30337664]
[1680501107755,5.28620591,27701.0,27700.0,0.30337664]
[1680501108171,5.54576798,27701.0,27700.0,0.30337664]
[1680501108391,2.5108112,27701.0,27700.0,1.43110126]
[1680501108618,0.00021,27703.0,27700.0,1.43110126]
[1680501108619,0.17300439,27703.0,27702.0,0.2]
[1680501109005,0.25956207,27708.0,27706.0,0.2]
[1680501109269,0.25956207,27708.0,27707.0,0.13385399]
[1680501109270,0.00018,27708.0,27707.0,0.13385399]
[1680501109503,1.2989303,27708.0,27707.0,0.44565399]
[1680501109716,1.56895996,27708.0,27707.0,0.36288243]
[1680501109939,0.21621486,27708.0,27707.0,0.36318243]
[1680501110173,0.21603486,27708.0,27707.0,0.36318243]
[1680501110370,0.22003486,27708.0,27707.0,0.36436243]
[1680501110850,0.21603486,27708.0,27707.0,0.36336243]
[1680501111063,0.22003486,27708.0,27707.0,0.36436243]
[1680501111277,0.304,27708.0,27707.0,0.36436243]
[1680501113146,0.3,27708.0,27707.0,0.36336243]
[1680501113363,0.307,27708.0,27707.0,0.36436243]
[1680501113784,0.007,27708.0,27707.0,0.36436243]
[1680501115113,0.307,27708.0,27707.0,0.36436243]
[1680501115358,0.007,27708.0,27707.0,0.36436243]
[1680501119142,0.007,27708.0,27707.0,0.13106243]
[1680501119361,0.007,27708.0,27707.0,0.13088243]
[1680501124235,0.007,27708.0,27707.0,0.13106243]
[1680501125770,0.00906633,27709.0,27708.0,0.0779]
[1680501125983,0.01756633,27709.0,27708.0,0.19629624]
[1680501126171,0.01756633,27709.0,27708.0,0.19647624]
[1680501126383,0.01756633,27709.0,27708.0,0.19629624]
[1680501126589,0.01756633,27709.0,27708.0,0.22721138]
[1680501126813,0.01756633,27709.0,27708.0,0.22739138]
[1680501127017,0.03756633,27709.0,27708.0,0.22939138]
[1680501128134,0.03756633,27709.0,27708.0,0.22921138]
[1680501129230,0.03756633,27709.0,27708.0,0.22939138]
[1680501130941,0.03756633,27709.0,27708.0,0.18859514]
[1680501131152,0.21791633,27709.0,27708.0,0.18859514]
[1680501131597,0.51791633,27709.0,27708.0,0.18859514]
[1680501132035,0.51791633,27709.0,27708.0,0.11069514]
[1680501132256,0.51791633,27709.0,27708.0,0.11051514]
[1680501132480,0.51791633,27709.0,27708.0,0.14358465]
[1680501134040,0.33756633,27709.0,27708.0,0.14358465]
[1680501136924,0.33756633,27709.0,27708.0,0.11051514]
[1680501137441,1.63640588,27709.0,27708.0,0.11051514]
[1680501142147,1.63640588,27709.0,27708.0,0.18871514]
[1680501142364,1.63640588,27709.0,27708.0,0.18889514]
[1680501142589,1.7226222,27709.0,27708.0,0.18889514]
[1680501143025,1.63640588,27709.0,27708.0,0.22978465]
[1680501143248,1.7226222,27709.0,27708.0,0.22978465]
[1680501145975,1.7141222,27709.0,27708.0,0.22978465]
[1680501146651,1.4141222,27709.0,27708.0,0.22978465]
[1680501148682,1.54344912,27709.0,27708.0,0.22978465]
[1680501149094,1.54362912,27709.0,27708.0,0.22960465]
[1680501149235,1.4574128,27709.0,27708.0,0.15140465]
[1680501149456,1.41439827,27709.0,27708.0,0.16937874]
[1680501149658,0.02018,27709.0,27708.0,0.55456767]
[1680501149894,0.02018,27709.0,27708.0,0.90954264]
[1680501149895,0.02,27709.0,27708.0,0.90954264]
[1680501150126,0.02,27709.0,27708.0,0.96325664]
[1680501150264,0.02,27709.0,27708.0,1.06313664]
[1680501150483,0.02,27709.0,27708.0,1.06325664]
[1680501150702,0.00884332,27712.0,27711.0,0.2]
[1680501150917,0.08631239,27713.0,27711.0,0.2982]
[1680501151127,0.08631239,27712.0,27711.0,0.2982]
[1680501151351,0.08631239,27712.0,27711.0,0.316423]
[1680501151771,0.08631239,27712.0,27711.0,0.368923]
[1680501151989,0.08631239,27712.0,27711.0,0.394223]
[1680501152202,0.08631239,27712.0,27711.0,0.447315]
[1680501152424,0.08631239,27712.0,27711.0,0.394223]
[1680501152643,0.22763931,27713.0,27711.0,0.395223]
[1680501152858,0.22763931,27713.0,27712.0,0.1274223]
[1680501152859,0.08631239,27713.0,27712.0,0.1274223]
[1680501153072,0.17248843,27713.0,27712.0,0.1274223]
[1680501153493,0.61058935,27713.0,27712.0,0.1274223]
[1680501153748,0.59858935,27713.0,27712.0,0.1274223]
[1680501153966,0.61658935,27713.0,27712.0,0.1294223]
[1680501154606,0.19048843,27713.0,27712.0,0.15930186]
[1680501155515,0.61659146,27713.0,27712.0,0.15930186]
[1680501155730,0.61659146,27713.0,27712.0,0.15948186]
[1680501156575,0.19048843,27713.0,27712.0,0.15948186]
[1680501156783,0.19048843,27713.0,27712.0,0.15930186]
[1680501158651,0.14755422,27713.0,27712.0,0.15930186]
[1680501160834,0.14755422,27713.0,27712.0,0.08140186]
[1680501162797,0.23389881,27713.0,27712.0,0.08140186]
[1680501163221,0.23335287,27713.0,27712.0,0.08140186]
[1680501164936,0.10379865,27713.0,27712.0,0.08140186]
[1680501169816,0.23335287,27713.0,27712.0,0.08140186]
[1680501170046,0.10379865,27713.0,27712.0,0.08140186]
[1680501170666,0.10373056,27713.0,27712.0,0.08140186]
[1680501172493,0.23328478,27713.0,27712.0,0.08140186]
[1680501173475,0.10373056,27713.0,27712.0,0.08140186]
[1680501176080,0.23328478,27713.0,27712.0,0.08140186]
[1680501177903,0.15544019,27713.0,27712.0,0.08140186]
[1680501178120,0.15544019,27713.0,27712.0,0.03187956]
[1680501178361,0.25544019,27713.0,27712.0,0.03187956]
[1680501178558,1.45406651,27713.0,27712.0,0.002]
[1680501179231,1.70475494,27713.0,27712.0,0.002]
[1680501179446,1.7047119,27713.0,27712.0,0.002]
[1680501179686,1.7209489,27713.0,27712.0,0.002]
[1680501179905,1.7047119,27713.0,27712.0,0.002]
[1680501180117,1.57520072,27713.0,27712.0,0.024218]
[1680501180553,1.55781475,27713.0,27712.0,0.022218]
[1680501180814,2.01093603,27713.0,27712.0,0.022218]
[1680501181042,1.98393603,27713.0,27712.0,0.022218]
[1680501181268,2.01093603,27713.0,27712.0,0.022218]
[1680501181936,1.58481475,27713.0,27712.0,0.022218]
[1680501182156,2.01093408,27713.0,27712.0,0.022218]
[1680501182405,1.98393408,27713.0,27712.0,0.022218]
[1680501182622,2.01093408,27713.0,27712.0,0.022218]
[1680501182842,1.98393408,27713.0,27712.0,0.022218]
[1680501183059,1.98393408,27713.0,27710.0,0.2]
[1680501183279,0.08635288,27711.0,27710.0,0.2]
[1680501183704,0.0085,27711.0,27710.0,0.2]
[1680501183927,0.09485288,27711.0,27710.0,0.2]
[1680501185233,0.11885288,27711.0,27710.0,0.2]
[1680501185454,0.09485288,27711.0,27710.0,0.2]
[1680501185670,0.12185288,27711.0,27710.0,0.220018]
[1680501185954,0.12185288,27711.0,27710.0,0.220198]
[1680501188604,0.2513822,27711.0,27710.0,0.220198]
[1680501189491,0.11335288,27711.0,27710.0,0.220198]
[1680501190162,0.11335288,27711.0,27710.0,0.238242]
[1680501190599,0.2428822,27711.0,27710.0,0.26866836]
[1680501191052,0.15652932,27711.0,27710.0,0.26866836]
[1680501192780,0.32901775,27711.0,27710.0,0.26866836]
[1680501194343,0.32901775,27711.0,27710.0,0.34646836]
[1680501194465,0.66915151,27711.0,27710.0,0.34646836]
[1680501194689,0.32988179,27711.0,27710.0,0.34646836]
[1680501196197,0.30288179,27711.0,27710.0,0.34646836]
[1680501196434,0.30688179,27711.0,27710.0,0.34746836]
[1680501197887,0.13380359,27711.0,27710.0,0.34746836]
[1680501201538,0.13380359,27711.0,27710.0,0.25162436]
[1680501201984,0.23380359,27711.0,27710.0,0.25162436]
[1680501202222,0.13380359,27711.0,27710.0,0.25162436]
[1680501202443,0.30688179,27711.0,27710.0,0.25162436]
[1680501202886,0.13380359,27711.0,27710.0,0.25162436]
[1680501203966,0.23380359,27711.0,27710.0,0.25162436]
[1680501204188,0.32853486,27711.0,27710.0,0.03160636]
[1680501204414,0.43862019,27711.0,27710.0,0.03142636]
[1680501204635,0.43862019,27711.0,27710.0,0.001]
[1680501205574,0.43480019,27711.0,27706.0,0.2782]
[1680501205788,0.12978619,27708.0,27707.0,0.03561626]
[1680501206697,0.12978619,27708.0,27707.0,0.06418871]
[1680501206920,0.13378619,27708.0,27707.0,0.06418871]
[1680501207552,0.22029995,27708.0,27707.0,0.06418871]
[1680501208239,0.13378619,27708.0,27707.0,0.06418871]
[1680501208450,0.22029324,27708.0,27707.0,0.06418871]
[1680501210869,0.09050705,27708.0,27707.0,0.06418871]
[1680501216205,0.004,27708.0,27707.0,0.89520868]
[1680501216420,0.004,27708.0,27707.0,0.94679868]
[1680501220602,0.004,27708.0,27707.0,0.54895368]
[1680501220852,0.004,27708.0,27707.0,0.49736368]
[1680501221365,0.004,27708.0,27707.0,0.51540868]
[1680501221540,0.004,27708.0,27707.0,0.55010268]
[1680501221749,0.004,27708.0,27707.0,0.56814768]
[1680501225780,0.004,27708.0,27707.0,0.51540868]
[1680501225983,0.004,27708.0,27707.0,0.56797068]
[1680501227958,0.004,27708.0,27707.0,0.51540868]
[1680501231125,0.004,27708.0,27707.0,0.56673668]
[1680501231334,0.0035657,27708.0,27707.0,0.56673668]
[1680501232870,0.0035657,27708.0,27707.0,0.56901768]
[1680501235605,0.0035657,27708.0,27707.0,0.51530868]
[1680501238722,0.0035657,27708.0,27707.0,0.56761968]
[1680501238939,0.0035657,27708.0,27707.0,0.57096068]
[1680501239147,0.0035657,27708.0,27707.0,0.51530868]
[1680501239356,0.0035657,27708.0,27707.0,0.43720868]
[1680501240229,0.0035657,27708.0,27707.0,0.48504868]
[1680501240437,0.0035657,27708.0,27707.0,0.43720868]
[1680501240653,0.0035657,27708.0,27707.0,0.48767768]
[1680501241171,0.0035657,27708.0,27707.0,0.43720868]
[1680501245716,0.0035657,27708.0,27707.0,0.48961968]
[1680501246126,0.0035657,27708.0,27707.0,0.43720868]
[1680501246528,0.0035657,27708.0,27707.0,0.48776368]
[1680501246963,0.0035657,27708.0,27707.0,0.41916368]
[1680501247529,0.0035657,27708.0,27707.0,0.06418871]
[1680501248323,0.0035657,27708.0,27707.0,0.11537571]
[1680501248935,0.0035657,27708.0,27707.0,0.06418871]
[1680501252628,0.0035657,27708.0,27707.0,0.11636271]
[1680501253082,0.0035657,27708.0,27707.0,0.06418871]
[1680501254700,0.0035657,27708.0,27707.0,0.11775771]
[1680501254919,0.00344847,27708.0,27707.0,0.11775771]
[1680501255606,0.00344847,27708.0,27707.0,0.13580271]
[1680501256150,0.00344847,27708.0,27707.0,0.13266071]
[1680501256590,0.08995552,27708.0,27707.0,0.13266071]
[1680501256792,0.08995552,27708.0,27707.0,0.08223371]
[1680501257836,0.00344847,27708.0,27707.0,0.08223371]
[1680501258465,0.08995552,27708.0,27707.0,0.08223371]
[1680501259470,0.08995552,27708.0,27707.0,0.04661745]
[1680501260536,0.08995552,27708.0,27707.0,0.09968845]
[1680501260744,0.08995552,27708.0,27707.0,0.40159242]
[1680501260960,0.08995552,27708.0,27707.0,0.453703]
[1680501263428,0.08995552,27708.0,27707.0,0.454375]
[1680501264070,0.08995552,27708.0,27707.0,0.5491878]
[1680501264202,0.08995552,27708.0,27707.0,0.54896272]
[1680501265441,0.08995552,27708.0,27707.0,0.5490653]
[1680501266035,0.08995552,27708.0,27707.0,0.92876272]
[1680501267366,0.08995552,27708.0,27707.0,0.9288653]
[1680501267587,0.08995552,27708.0,27707.0,0.92876272]
[1680501272573,0.08995552,27708.0,27707.0,0.9288653]
[1680501272791,0.08995552,27708.0,27707.0,0.92876272]
[1680501273025,0.00344847,27708.0,27707.0,0.92876272]
[1680501274355,0.00344847,27708.0,27707.0,0.9288653]
[1680501276189,0.00344847,27708.0,27707.0,0.9289253]
[1680501277917,0.00344847,27708.0,27707.0,0.8582003]
[1680501278384,0.00344847,27708.0,27707.0,0.8762453]
[1680501278602,0.00344847,27708.0,27707.0,0.92754501]
[1680501282009,0.00344847,27708.0,27707.0,1.00564501]
[1680501285062,0.00344847,27708.0,27707.0,1.00574759]
[1680501285428,0.00344847,27708.0,27707.0,1.00564501]
[1680501287112,0.00344847,27708.0,27707.0,0.95406601]
[1680501287531,0.00344847,27708.0,27707.0,1.00571901]
[1680501288417,0.00344847,27708.0,27707.0,1.00599901]
[1680501288920,0.00344847,27708.0,27707.0,0.95406601]
[1680501292160,0.00344847,27708.0,27707.0,0.87596601]
[1680501292773,0.00344847,27708.0,27707.0,0.92726601]
[1680501293067,0.00344847,27708.0,27707.0,0.92901101]
[1680501294926,0.00344847,27708.0,27707.0,0.87596601]
[1680501295181,0.00344847,27708.0,27707.0,0.92889801]
[1680501296874,0.00344847,27708.0,27707.0,0.92933239]
[1680501297098,0.00344847,27708.0,27707.0,0.87640039]
[1680501297879,0.00344847,27708.0,27707.0,0.92786139]
[1680501298101,0.00344847,27708.0,27707.0,0.87640039]
[1680501299168,0.00344847,27708.0,27707.0,0.92844639]
[1680501299358,0.00344847,27708.0,27707.0,0.87640039]
[1680501302503,0.00334146,27708.0,27707.0,0.87650297]
[1680501304246,0.00334146,27708.0,27707.0,0.49670297]
[1680501304467,0.00334146,27708.0,27707.0,0.40189017]
[1680501304686,0.00334146,27708.0,27707.0,0.38384517]
[1680501305408,0.00334146,27708.0,27707.0,0.0288702]
[1680501305645,0.00334146,27708.0,27707.0,0.04681262]
[1680501313691,0.46237591,27708.0,27707.0,0.02876762]
[1680501314003,0.56255591,27708.0,27707.0,0.02876762]
[1680501314224,0.43276972,27708.0,27707.0,0.02876762]
[1680501314674,0.91067371,27708.0,27707.0,0.00043438]
[1680501314892,1.08378921,27708.0,27707.0,0.00043438]
[1680501315121,0.92357225,27708.0,27707.0,0.00043438]
[1680501315353,0.86802395,27708.0,27707.0,0.00043438]
[1680501315568,0.90219395,27708.0,27707.0,0.00043438]
[1680501316022,0.94550225,27708.0,27707.0,0.00043438]
[1680501316252,1.10792225,27708.0,27707.0,0.00043438]
[1680501316495,1.13492225,27708.0,27707.0,0.00043438]
[1680501318279,1.30784014,27708.0,27707.0,0.00043438]
[1680501319139,1.09152982,27708.0,27707.0,0.00043438]
[1680501319990,1.30784014,27708.0,27707.0,0.00043438]
[1680501320201,1.09152982,27708.0,27707.0,0.00043438]
[1680501320432,0.28209789,27708.0,27707.0,0.00043438]
[1680501320643,0.41174271,27708.0,27707.0,0.00043438]
[1680501320854,0.70826192,27708.0,27707.0,0.00043438]
[1680501321279,0.51171307,27708.0,27707.0,0.00043438]
[1680501322155,0.58931307,27708.0,27707.0,0.00043438]
[1680501322603,0.41639518,27708.0,27707.0,0.00043438]
[1680501322816,0.58931307,27708.0,27707.0,0.00043438]
[1680501323260,0.41639518,27708.0,27707.0,0.00043438]
[1680501324133,0.58931307,27708.0,27707.0,0.00043438]
[1680501324355,0.41639518,27708.0,27707.0,0.00043438]
[1680501325426,0.31639518,27708.0,27707.0,0.00043438]
[1680501325612,0.41639518,27708.0,27707.0,0.00043438]
[1680501327940,0.31639518,27708.0,27707.0,0.00043438]
[1680501328171,0.41639518,27708.0,27707.0,0.00043438]
[1680501328653,0.31639518,27708.0,27707.0,0.00043438]
[1680501328877,0.41639518,27708.0,27707.0,0.00043438]
[1680501329107,0.42489518,27708.0,27707.0,0.00043438]
[1680501329358,0.51125759,27708.0,27707.0,0.00043438]
[1680501329804,0.41125759,27708.0,27707.0,0.00043438]
[1680501330025,0.33365759,27708.0,27707.0,0.00043438]
[1680501330248,0.32515759,27708.0,27707.0,0.00043438]
[1680501330903,0.33406727,27708.0,27707.0,0.00043438]
[1680501331127,0.04008968,27708.0,27707.0,0.00043438]
[1680501331351,0.03990968,27708.0,27707.0,0.00043438]
[1680501331573,0.03990968,27708.0,27707.0,0.04633267]
[1680501331802,0.03990968,27708.0,27707.0,0.05096594]
[1680501332036,0.031,27708.0,27707.0,0.03292094]
[1680501332699,0.031,27708.0,27707.0,0.00506765]
[1680501332900,0.031,27708.0,27707.0,0.00043438]
[1680501338869,0.19556241,27708.0,27707.0,0.00043438]
[1680501339536,0.29556241,27708.0,27707.0,0.00043438]
[1680501339831,0.29574241,27708.0,27707.0,0.00043438]
[1680501340491,0.30424241,27708.0,27707.0,0.00043438]
[1680501342017,0.20424241,27708.0,27707.0,0.00043438]
[1680501342233,0.30406241,27708.0,27707.0,0.00043438]
[1680501342449,0.30406241,27708.0,27707.0,0.00035122]
[1680501343850,0.20406241,27708.0,27707.0,0.00035122]
[1680501344265,0.30406241,27708.0,27707.0,0.00035122]
[1680501347166,0.30424241,27708.0,27707.0,0.00035122]
[1680501347395,0.30406241,27708.0,27707.0,0.00035122]
[1680501347639,0.43367759,27708.0,27707.0,0.00035122]
[1680501349197,0.34731518,27708.0,27707.0,0.00035122]
[1680501351466,0.34749518,27708.0,27707.0,0.00035122]
[1680501351691,0.34743518,27708.0,27707.0,0.00035122]
[1680501352020,0.34731518,27708.0,27707.0,0.00035122]
[1680501353333,0.35627489,27708.0,27707.0,0.00035122]
[1680501354913,0.53662489,27708.0,27707.0,0.00035122]
[1680501355123,0.70954278,27708.0,27707.0,0.00035122]
[1680501355742,0.60954278,27708.0,27707.0,0.00035122]
[1680501355958,0.4799276,27708.0,27707.0,0.00035122]
[1680501356385,2.52648143,27708.0,27707.0,0.00035122]
[1680501356598,2.52651107,27708.0,27707.0,0.00035122]
[1680501357459,2.49551107,27708.0,27707.0,0.00035122]
[1680501357675,2.52251107,27708.0,27707.0,0.00035122]
[1680501358016,2.49551107,27708.0,27707.0,0.00035122]
[1680501358239,2.52251107,27708.0,27707.0,0.00035122]
[1680501358690,2.52269107,27708.0,27707.0,0.00035122]
[1680501358891,2.78225314,27708.0,27707.0,0.00035122]
[1680501361871,2.60190314,27708.0,27707.0,0.00035122]
[1680501362086,2.78225314,27708.0,27707.0,0.00035122]
[1680501364066,2.52269107,27708.0,27707.0,0.00035122]
[1680501364286,2.78225314,27708.0,27707.0,0.00035122]
[1680501364478,2.52269107,27708.0,27707.0,0.00035122]
[1680501364692,2.78225314,27708.0,27707.0,0.00035122]
[1680501364921,2.52269107,27708.0,27707.0,0.00035122]
[1680501365620,2.70269107,27708.0,27707.0,0.00035122]
[1680501367392,2.96225314,27708.0,27707.0,0.00035122]
[1680501367605,2.70269107,27708.0,27707.0,0.00035122]
[1680501371000,2.96225314,27708.0,27707.0,0.00024012]
[1680501371228,2.96207314,27708.0,27707.0,0.00024012]
[1680501372887,2.93507314,27708.0,27707.0,0.00024012]
[1680501373088,2.96207314,27708.0,27707.0,0.00024012]
[1680501373512,2.67551107,27708.0,27707.0,0.00024012]
[1680501373718,2.70251107,27708.0,27707.0,0.00024012]
[1680501374154,2.50592107,27708.0,27707.0,0.00024012]
[1680501374385,2.52216107,27708.0,27707.0,0.00024012]
[1680501374614,2.24952107,27708.0,27707.0,0.00024012]
[1680501376828,2.42987107,27708.0,27707.0,0.00024012]
[1680501378476,2.45705471,27708.0,27707.0,0.00024012]
[1680501380933,2.45701172,27708.0,27707.0,0.00024012]
[1680501381914,2.45719172,27708.0,27707.0,0.00024012]
[1680501382366,2.45701172,27708.0,27707.0,0.00024012]
[1680501383046,2.47325172,27708.0,27707.0,0.00024012]
[1680501383267,2.48175172,27708.0,27707.0,0.00024012]
[1680501383487,2.26571808,27708.0,27707.0,0.00024012]
[1680501388293,2.34391808,27708.0,27707.0,0.00024012]
[1680501392277,2.52426808,27708.0,27707.0,0.00024012]
[1680501392705,2.52444808,27708.0,27707.0,0.00024012]
[1680501392933,2.52426808,27708.0,27707.0,0.00024012]
[1680501394134,2.90406808,27708.0,27707.0,0.00024012]
[1680501394358,2.92212195,27708.0,27707.0,0.00024012]
[1680501394777,3.92212195,27708.0,27707.0,0.00024012]
[1680501395341,4.18168402,27708.0,27707.0,0.00024012]
[1680501397941,3.92212195,27708.0,27707.0,0.00017468]
[1680501398157,4.5188215,27708.0,27707.0,0.00017468]
[1680501398805,4.50076763,27708.0,27707.0,0.00017468]
[1680501399508,4.50094763,27708.0,27707.0,0.00017468]
[1680501400231,4.50076763,27708.0,27707.0,0.00017468]
[1680501402022,4.57846763,27708.0,27707.0,0.00017468]
[1680501402890,4.19016763,27708.0,27707.0,0.00017468]
[1680501403128,3.16316763,27708.0,27707.0,0.00017468]
[1680501403335,2.56646808,27708.0,27707.0,0.00017468]
[1680501404165,2.57496808,27708.0,27707.0,0.00017468]
[1680501404386,2.60196808,27708.0,27707.0,0.00017468]
[1680501405665,3.19866763,27708.0,27707.0,0.00017468]
[1680501406133,3.19859292,27708.0,27707.0,0.00017468]
[1680501406336,2.60189337,27708.0,27707.0,0.00017468]
[1680501407413,3.60189337,27708.0,27707.0,0.00017468]
[1680501407620,4.19859292,27708.0,27707.0,0.00017468]
[1680501409516,4.01824292,27708.0,27707.0,0.00017468]
[1680501410772,3.86234292,27708.0,27707.0,0.00017468]
[1680501412066,3.94054292,27708.0,27707.0,0.00017468]
[1680501412279,3.86234292,27708.0,27707.0,0.00017468]
[1680501413141,2.86234292,27708.0,27707.0,0.00017468]
[1680501413349,3.26564337,27708.0,27707.0,0.00017468]
[1680501413562,2.26564337,27708.0,27707.0,0.00017468]
[1680501414399,3.26564337,27708.0,27707.0,0.00017468]
[1680501414816,3.86234292,27708.0,27707.0,0.00017468]
[1680501415243,4.04269292,27708.0,27707.0,0.00017468]
[1680501415694,3.04269292,27708.0,27707.0,0.00017468]
[1680501415905,2.44599337,27708.0,27707.0,0.00017468]
[1680501416540,3.44617337,27708.0,27707.0,0.00017468]
[1680501416746,4.04287292,27708.0,27707.0,0.00017468]
[1680501417184,3.04287292,27708.0,27701.0,0.07267468]
[1680501417388,0.08652659,27702.0,27701.0,0.15740786]
[1680501418690,0.08652659,27702.0,27701.0,0.07267468]
[1680501419581,0.11352659,27702.0,27701.0,0.07267468]
[1680501421345,0.29352659,27702.0,27701.0,0.07267468]
[1680501421553,0.29370659,27702.0,27701.0,0.09072368]
[1680501421772,0.29370659,27702.0,27701.0,0.07267468]
[1680501422261,0.26670659,27702.0,27701.0,0.07267468]
[1680501422582,0.28370659,27702.0,27701.0,0.07267468]
[1680501422812,0.26670659,27702.0,27701.0,0.14921286]
[1680501423010,0.28370659,27702.0,27701.0,0.14921286]
[1680501423466,0.26670659,27702.0,27701.0,0.14921286]
[1680501423704,0.29070659,27702.0,27701.0,0.14921286]
[1680501423911,0.26670659,27702.0,27701.0,0.14921286]
[1680501424804,0.28370659,27702.0,27701.0,0.14921286]
[1680501425031,0.26670659,27702.0,27701.0,0.14921286]
[1680501425258,0.29070659,27702.0,27701.0,0.14921286]
[1680501425475,0.26670659,27702.0,27701.0,0.14921286]
[1680501425702,0.28370659,27702.0,27701.0,0.14921286]
[1680501425916,0.26670659,27702.0,27701.0,0.14921286]
[1680501427699,0.28370659,27702.0,27701.0,0.14921286]
[1680501428147,0.26670659,27702.0,27701.0,0.14921286]
[1680501428362,0.29070659,27702.0,27701.0,0.14921286]
[1680501428574,0.26670659,27702.0,27701.0,0.14921286]
[1680501428819,0.28370659,27702.0,27701.0,0.14801286]
[1680501429036,0.26670659,27702.0,27701.0,0.14801286]
[1680501429241,0.29070659,27702.0,27701.0,0.14801286]
[1680501429681,0.26670659,27702.0,27701.0,0.14801286]
[1680501431112,0.29070659,27702.0,27701.0,0.14801286]
[1680501433608,0.42049648,27702.0,27701.0,0.14801286]
[1680501434258,0.29070659,27702.0,27701.0,0.14801286]
[1680501435602,0.42049648,27702.0,27701.0,0.14801286]
[1680501436812,0.33396989,27702.0,27701.0,0.14801286]
[1680501438433,0.33396989,27702.0,27701.0,0.14789687]
[1680501446208,0.33396989,27702.0,27701.0,0.07135869]
[1680501447436,0.53056389,27702.0,27700.0,0.27315713]
[1680501447658,0.53056389,27702.0,27700.0,0.19489455]
[1680501447659,0.30290928,27701.0,27700.0,0.19489455]
[1680501447871,0.28929718,27701.0,27700.0,0.19489455]
[1680501448084,0.71553994,27701.0,27700.0,0.19489455]
[1680501448770,0.69314163,27701.0,27700.0,0.19489455]
[1680501449003,0.69314163,27701.0,27699.0,0.02176258]
[1680501449004,0.1,27700.0,27699.0,0.02176258]
[1680501449263,0.1,27699.0,27697.0,0.0216]
[1680501449495,0.73353176,27698.0,27697.0,0.0216]
[1680501449721,0.48875426,27698.0,27697.0,0.0216]
[1680501449940,1.01507426,27698.0,27697.0,0.0216]
[1680501450168,1.03312813,27698.0,27697.0,0.0216]
[1680501450618,1.37636945,27698.0,27697.0,0.0216]
[1680501450843,1.16034287,27698.0,27697.0,0.0216]
[1680501451031,1.40356064,27698.0,27697.0,0.0216]